fUSD/lending_fUSD_20250818
["ID","MTS","AMOUNT","RATE_DAILY","PERIOD"]
[380032144,1755489042586,-150.0,0.00010254,2]
[380032145,1755489042595,-150.0,0.00010254,2]
[380032146,1755489042604,-500.0,0.00010275,2]
[380032147,1755489042613,-150.0,0.0001028,2]
[380032148,1755489042623,-6800.0,0.000103,3]
[380032149,1755489042632,-62313.6877988,0.00010327,2]
[380032150,1755489042641,-500.0,0.00010329,2]
[380032151,1755489042650,-1854.0,0.00010329,2]
[380032152,1755489042660,-500.0,0.00010329,2]
[380032153,1755489042669,-500.0,0.00010329,2]
[380032154,1755489042679,-500.0,0.00010329,2]
[380032155,1755489042688,-500.0,0.00010329,2]
[380032156,1755489042698,-1145.0,0.00010329,2]
[380032157,1755489042707,-512.84735864,0.00010329,2]
[380032158,1755489042716,-500.0,0.00010329,2]
[380032159,1755489042725,-500.0,0.00010329,2]
[380032160,1755489042735,-500.0,0.00010329,2]
[380032161,1755489042745,-500.0,0.00010329,2]
[380032162,1755489042755,-500.0,0.00010329,2]
[380032163,1755489042766,-500.0,0.00010329,2]
[380032164,1755489042775,-500.0,0.00010329,2]
[380032165,1755489042785,-150.0,0.00010329,2]
[380032166,1755489042794,-500.0,0.00010329,2]
[380032167,1755489042803,-514.65111795,0.00010329,2]
[380032168,1755489042814,-150.0,0.00010329,2]
[380032169,1755489042823,-500.0,0.00010329,2]
[380032170,1755489042832,-500.0,0.00010329,2]
[380032171,1755489042842,-500.0,0.00010329,2]
[380032172,1755489042851,-269.64252954,0.00010329,2]
[380032173,1755489042861,-200.0,0.00010329,2]
[380032174,1755489042871,-200.0,0.00010329,2]
[380032175,1755489042883,-150.0,0.00010329,2]
[380032176,1755489042892,-500.0,0.00010329,2]
[380032177,1755489042902,-500.0,0.00010329,2]
[380032178,1755489042912,-617.0,0.00010329,2]
[380032179,1755489042924,-500.0,0.0001033,2]
[380032180,1755489042934,-64600.6524438,0.00010333,2]
[380032181,1755489042944,-150.0,0.00010346,2]
[380032182,1755489042954,-806.09159188,0.00010346,2]
[380032183,1755489042966,-1027.37163672,0.00010346,2]
[380032184,1755489042977,-1248.65168155,0.00010346,2]
[380032185,1755489042989,-1469.93172638,0.00010346,2]
[380032186,1755489043000,-1691.21177121,0.00010346,2]
[380032187,1755489043011,-1912.49181604,0.00010346,2]
[380032188,1755489043020,-2133.77186087,0.00010346,2]
[380032189,1755489043030,-2355.0519057,0.00010346,2]
[380032190,1755489043039,-2576.33195052,0.00010346,2]
[380032191,1755489043049,-371280.6678778,0.00010356,2]
[380032192,1755489043060,-546.942,0.00010385,2]
[380032193,1755489043070,-9572.826,0.00010385,2]
[380032195,1755489043093,-500.0,0.00010385,2]
[380032196,1755489043113,-4655.21115485,0.00010388,2]
[380032198,1755489043124,-8500.0,0.000104,3]
[380032199,1755489043137,-744.6009,0.00010411,2]
[380032200,1755489043148,-150.0,0.00010437,2]
[380032201,1755489043159,-150.0,0.00010437,2]
[380032202,1755489043170,-150.0,0.00010437,2]
[380032203,1755489043179,-150.0,0.00010437,2]
[380032204,1755489043188,-165.96,0.00010438,2]
[380032205,1755489043198,-500.0,0.0001044,2]
[380032206,1755489043207,-27041.99,0.00010475,2]
[380032207,1755489043216,-500.0,0.00010495,2]
[380032208,1755489043225,-1700.0,0.000105,3]
[380032209,1755489043235,-467.0,0.00010521,2]
[380032210,1755489043244,-792.0,0.00010522,2]
[380032211,1755489043254,-491.0,0.00010522,2]
[380032212,1755489043263,-2632.0,0.00010522,2]
[380032213,1755489043273,-150.0,0.00010522,2]
[380032214,1755489043282,-10172.30140352,0.00010522,2]
[380032215,1755489043291,-1222.04,0.00010547,2]
[380032217,1755489043301,-151.0,0.00010548,2]
[380032219,1755489043311,-500.0,0.0001055,2]
[380032220,1755489043320,-250.0,0.0001055,2]
[380032221,1755489043329,-565.77873131,0.00010573,2]
[380032222,1755489043338,-153.0,0.000106,2]
[380032223,1755489043348,-1700.0,0.000106,3]
[380032224,1755489043357,-500.0,0.00010603,2]
[380032225,1755489043366,-1854.0,0.00010603,2]
[380032226,1755489043375,-500.0,0.00010603,2]
[380032227,1755489043385,-500.0,0.00010603,2]
[380032228,1755489043395,-500.0,0.00010603,2]
[380032229,1755489043404,-500.0,0.00010603,2]
[380032230,1755489043413,-1145.0,0.00010603,2]
[380032231,1755489043423,-500.0,0.00010603,2]
[380032232,1755489043433,-500.0,0.00010603,2]
[380032233,1755489043442,-500.0,0.00010603,2]
[380032234,1755489043452,-500.0,0.00010603,2]
[380032235,1755489043461,-500.0,0.00010603,2]
[380032236,1755489043471,-180.59180096,0.00010603,2]
[380032237,1755489043480,-500.0,0.00010603,2]
[380032238,1755489043490,-204.64044887,0.00010603,2]
[380032239,1755489043499,-500.0,0.00010603,2]
[380032240,1755489043509,-153.58505331,0.00010603,2]
[380032241,1755489043518,-500.0,0.00010603,2]
[380032242,1755489043527,-500.0,0.00010603,2]
[380032243,1755489043537,-164.67970133,0.00010603,2]
[380032244,1755489043546,-158.86845251,0.00010603,2]
[380032245,1755489043555,-500.0,0.00010603,2]
[380032246,1755489043565,-500.0,0.00010603,2]
[380032247,1755489043574,-617.0,0.00010603,2]
[380032248,1755489043584,-500.0,0.00010605,2]
[380032249,1755489043593,-798.03619797,0.00010608,2]
[380032250,1755489043602,-150.0,0.0001062,2]
[380032251,1755489043611,-150.0,0.0001062,2]
[380032252,1755489043620,-500.0,0.0001066,2]
[380032253,1755489043633,-14849.58889972,0.00010672,2]
[380032255,1755489043644,-1700.0,0.000107,3]
[380032257,1755489043654,-89813.6034454,0.0001076,2]
[380032259,1755489043665,-500.0,0.00010767,2]
[380032261,1755489043675,-792.0,0.00010796,2]
[380032263,1755489043686,-491.0,0.00010796,2]
[380032265,1755489043695,-2632.0,0.00010796,2]
[380032266,1755489043705,-150.0,0.00010796,2]
[380032267,1755489043714,-1700.0,0.000108,3]
[380032268,1755489043723,-150.0,0.00010803,2]
[380032269,1755489043733,-28078.0,0.00010877,2]
[380032271,1755489043743,-500.0,0.00010877,2]
[380032272,1755489043753,-1854.0,0.00010877,2]
[380032273,1755489043763,-500.0,0.00010877,2]
[380032274,1755489043773,-500.0,0.00010877,2]
[380032275,1755489043783,-500.0,0.00010877,2]
[380032276,1755489043794,-500.0,0.00010877,2]
[380032277,1755489043805,-1145.0,0.00010877,2]
[380032278,1755489043816,-500.0,0.00010877,2]
[380032279,1755489043828,-500.0,0.00010877,2]
[380032280,1755489043840,-500.0,0.00010877,2]
[380032281,1755489043853,-284.18670159,0.00010877,2]
[380032282,1755489043864,-500.0,0.00010877,2]
[380032283,1755489043875,-500.0,0.00010877,2]
[380032284,1755489043892,-214.33516346,0.00010877,2]
[380032285,1755489043901,-500.0,0.00010877,2]
[380032286,1755489043911,-254.64789077,0.00010877,2]
[380032287,1755489043921,-500.0,0.00010877,2]
[380032288,1755489043932,-500.0,0.00010877,2]
[380032289,1755489043941,-617.0,0.00010877,2]
[380032290,1755489043950,-7000.0,0.0001089,2]
[380032291,1755489043961,-69237.4308876,0.00010895,2]
[380032292,1755489043971,-1251.40943873,0.000109,2]
[380032293,1755489043981,-11524.00592177,0.000109,2]
[380032294,1755489043991,-6654.4074,0.000109,2]
[380032295,1755489044001,-635.71008077,0.000109,2]
[380032296,1755489044010,-21357.66726122,0.000109,2]
[380032297,1755489044020,-1962.0,0.000109,3]
[380032298,1755489044031,-565.77873131,0.000109,2]
[380032299,1755489044040,-485.49760388,0.000109,2]
[380032300,1755489044050,-485.49760386,0.000109,2]
[380032302,1755489044059,-485.49760386,0.000109,2]
[380032303,1755489044069,-485.49760386,0.000109,2]
[380032304,1755489044079,-485.49760386,0.000109,2]
[380032305,1755489044090,-3981.73739307,0.000109,2]
[380032306,1755489044099,-485.49760386,0.000109,2]
[380032307,1755489044109,-485.49760386,0.000109,2]
[380032308,1755489044118,-4435.0,0.000109,2]
[380032309,1755489044128,-71778.5027154,0.00010908,2]
[380032312,1755489044137,-1000.0,0.0001091,2]
[380032313,1755489044147,-1000.0,0.00010945,2]
[380032314,1755489044158,-1000.0,0.00010945,2]
[380032315,1755489044168,-1000.0,0.00010945,2]
[380032316,1755489044177,-1000.0,0.00010945,2]
[380032317,1755489044189,-1000.0,0.00010945,2]
[380032318,1755489044198,-1000.0,0.00010945,2]
[380032319,1755489044207,-1000.0,0.00010945,2]
[380032320,1755489044216,-1000.0,0.00010945,2]
[380032321,1755489044226,-1000.0,0.00010945,2]
[380032322,1755489044235,-1000.0,0.00010945,2]
[380032323,1755489044245,-1000.0,0.00010945,2]
[380032324,1755489044255,-1000.0,0.00010945,2]
[380032325,1755489044264,-1000.0,0.00010945,2]
[380032326,1755489044274,-1000.0,0.00010945,2]
[380032327,1755489044283,-1000.0,0.00010945,2]
[380032328,1755489044293,-1000.0,0.00010945,2]
[380032329,1755489044303,-1000.0,0.00010945,2]
[380032330,1755489044312,-1000.0,0.00010945,2]
[380032331,1755489044323,-1000.0,0.00010945,2]
[380032332,1755489044332,-1000.0,0.00010945,2]
[380032333,1755489044342,-1000.0,0.00010945,2]
[380032334,1755489044352,-1000.0,0.00010945,2]
[380032335,1755489044362,-1000.0,0.00010945,2]
[380032336,1755489044371,-1000.0,0.00010945,2]
[380032337,1755489044380,-1000.0,0.00010945,2]
[380032338,1755489044390,-1000.0,0.00010945,2]
[380032339,1755489044400,-1000.0,0.00010945,2]
[380032340,1755489044409,-1000.0,0.00010945,2]
[380032341,1755489044418,-1000.0,0.00010945,2]
[380032342,1755489044428,-1000.0,0.00010945,2]
[380032343,1755489044439,-1000.0,0.00010945,2]
[380032344,1755489044449,-1000.0,0.00010945,2]
[380032345,1755489044459,-1000.0,0.00010945,2]
[380032346,1755489044781,-1000.0,0.00010945,2]
[380032347,1755489044796,-1000.0,0.00010945,2]
[380032348,1755489044805,-1000.0,0.00010945,2]
[380032349,1755489044815,-1000.0,0.00010945,2]
[380032350,1755489044824,-1000.0,0.00010945,2]
[380032351,1755489044834,-1000.0,0.00010945,2]
[380032352,1755489044844,-1000.0,0.00010945,2]
[380032353,1755489044853,-1000.0,0.00010945,2]
[380032354,1755489044862,-1000.0,0.00010945,2]
[380032355,1755489044871,-1000.0,0.00010945,2]
[380032356,1755489044882,-1000.0,0.00010945,2]
[380032357,1755489044891,-1000.0,0.00010945,2]
[380032358,1755489044900,-1000.0,0.00010945,2]
[380032359,1755489044910,-1000.0,0.00010945,2]
[380032360,1755489044919,-1000.0,0.00010945,2]
[380032361,1755489044928,-1000.0,0.00010945,2]
[380032362,1755489044938,-1000.0,0.00010945,2]
[380032363,1755489044947,-1000.0,0.00010945,2]
[380032364,1755489044957,-1000.0,0.00010945,2]
[380032365,1755489044968,-1000.0,0.00010945,2]
[380032366,1755489044978,-1000.0,0.00010945,2]
[380032367,1755489044987,-1000.0,0.00010945,2]
[380032368,1755489044996,-1000.0,0.00010945,2]
[380032369,1755489045006,-1000.0,0.00010945,2]
[380032370,1755489045015,-1000.0,0.00010945,2]
[380032371,1755489045025,-1000.0,0.00010945,2]
[380032372,1755489045034,-1000.0,0.00010945,2]
[380032373,1755489045043,-1000.0,0.00010945,2]
[380032374,1755489045053,-1000.0,0.00010945,2]
[380032375,1755489045063,-1000.0,0.00010945,2]
[380032376,1755489045072,-1000.0,0.00010945,2]
[380032377,1755489045081,-1000.0,0.00010945,2]
[380032378,1755489045091,-1000.0,0.00010945,2]
[380032379,1755489045099,-1000.0,0.00010945,2]
[380032380,1755489045109,-1000.0,0.00010945,2]
[380032381,1755489045119,-1000.0,0.00010945,2]
[380032382,1755489045127,-1000.0,0.00010945,2]
[380032383,1755489045136,-1000.0,0.00010945,2]
[380032384,1755489045146,-1000.0,0.00010945,2]
[380032385,1755489045155,-1000.0,0.00010945,2]
[380032386,1755489045164,-1000.0,0.00010945,2]
[380032387,1755489045173,-1000.0,0.00010945,2]
[380032388,1755489045183,-1000.0,0.00010945,2]
[380032389,1755489045192,-1000.0,0.00010945,2]
[380032390,1755489045201,-1000.0,0.00010945,2]
[380032391,1755489045211,-1000.0,0.00010945,2]
[380032392,1755489045220,-1000.0,0.00010945,2]
[380032393,1755489045230,-1000.0,0.00010945,2]
[380032394,1755489045239,-1000.0,0.00010945,2]
[380032395,1755489045248,-1000.0,0.00010945,2]
[380032396,1755489045258,-1000.0,0.00010945,2]
[380032397,1755489045267,-1000.0,0.00010945,2]
[380032398,1755489045276,-1000.0,0.00010945,2]
[380032399,1755489045285,-1000.0,0.00010945,2]
[380032400,1755489045295,-1000.0,0.00010945,2]
[380032401,1755489045304,-1000.0,0.00010945,2]
[380032402,1755489045313,-1000.0,0.00010945,2]
[380032403,1755489045322,-1000.0,0.00010945,2]
[380032404,1755489045332,-1000.0,0.00010945,2]
[380032405,1755489045341,-1000.0,0.00010945,2]
[380032406,1755489045350,-1000.0,0.00010945,2]
[380032407,1755489045359,-1000.0,0.00010945,2]
[380032408,1755489045368,-1000.0,0.00010945,2]
[380032409,1755489045377,-1000.0,0.00010945,2]
[380032410,1755489045386,-1000.0,0.00010945,2]
[380032411,1755489045395,-1000.0,0.00010945,2]
[380032412,1755489045405,-1000.0,0.00010945,2]
[380032413,1755489045414,-500.0,0.00010959,2]
[380032414,1755489045423,-200.0,0.00010959,2]
[380032415,1755489045433,-200.0,0.00010959,2]
[380032416,1755489045442,-200.0,0.00010959,2]
[380032417,1755489045452,-200.0,0.00010959,2]
[380032418,1755489045461,-200.0,0.00010959,2]
[380032419,1755489045471,-200.0,0.00010959,2]
[380032420,1755489045481,-150.0,0.00010959,2]
[380032421,1755489045490,-150.0,0.00010959,2]
[380032422,1755489045500,-4925.83,0.00010959,2]
[380032423,1755489045509,-500.0,0.00010973,2]
[380032424,1755489045518,-150.72577644,0.00010973,2]
[380032425,1755489045528,-172.63172576,0.00010973,2]
[380032426,1755489045538,-500.0,0.00010973,2]
[380032427,1755489045547,-527.74833519,0.00010973,2]
[380032428,1755489045558,-518.11592461,0.00010973,2]
[380032429,1755489045567,-500.0,0.00010973,2]
[380032430,1755489045576,-500.0,0.00010973,2]
[380032431,1755489045586,-500.0,0.00010973,2]
[380032432,1755489045595,-500.0,0.00010973,2]
[380032433,1755489045604,-500.0,0.00010973,2]
[380032434,1755489045614,-500.0,0.00010973,2]
[380032435,1755489045623,-500.0,0.00010973,2]
[380032436,1755489045632,-629.80551833,0.00010973,2]
[380032437,1755489045642,-501.3536025,0.00010973,2]
[380032438,1755489045653,-500.0,0.00010973,2]
[380032439,1755489045663,-500.06107947,0.00010973,2]
[380032440,1755489045674,-500.0,0.00010973,2]
[380032441,1755489045686,-500.69974188,0.00010973,2]
[380032442,1755489045695,-500.0,0.00010973,2]
[380032443,1755489045705,-500.0,0.00010973,2]
[380032444,1755489045714,-500.0,0.00010973,2]
[380032445,1755489045725,-500.0,0.00010973,2]
[380032446,1755489045735,-500.0,0.00010973,2]
[380032447,1755489045745,-500.0,0.00010973,2]
[380032448,1755489045755,-500.0,0.00010973,2]
[380032449,1755489045765,-500.0,0.00010973,2]
[380032450,1755489045775,-500.0,0.00010973,2]
[380032451,1755489045784,-500.0,0.00010973,2]
[380032452,1755489045794,-500.0,0.00010973,2]
[380032453,1755489045803,-489.73005226,0.00010973,2]
[380032454,1755489045812,-500.0,0.00010973,2]
[380032455,1755489045822,-500.0,0.00010973,2]
[380032456,1755489045832,-510.13897176,0.00010973,2]
[380032457,1755489045841,-500.0,0.00010973,2]
[380032458,1755489045851,-500.0,0.00010973,2]
[380032459,1755489045861,-500.0,0.00010973,2]
[380032460,1755489045872,-495.57974681,0.00010973,2]
[380032461,1755489045884,-500.0,0.00010973,2]
[380032462,1755489045896,-501.35103141,0.00010973,2]
[380032463,1755489045907,-500.0,0.00010973,2]
[380032464,1755489045917,-500.0,0.00010973,2]
[380032465,1755489045929,-150.0,0.00010986,2]
[380032466,1755489045940,-236.18708013,0.00010986,2]
[380032467,1755489045949,-169.19047419,0.00010986,2]
[380032468,1755489045960,-292.58153057,0.00010986,2]
[380032469,1755489045970,-189.42521967,0.00010986,2]
[380032470,1755489045979,-343.0,0.00010986,2]
[380032471,1755489045989,-150.0,0.00010989,2]
[380032472,1755489046000,-806.09159188,0.00010989,2]
[380032473,1755489046010,-1027.37163672,0.00010989,2]
[380032474,1755489046020,-1248.65168155,0.00010989,2]
[380032475,1755489046030,-1469.93172638,0.00010989,2]
[380032476,1755489046040,-500.0,0.00010989,2]
[380032477,1755489046050,-151.31924293,0.00010989,2]
[380032479,1755489046059,-2671.19095307,0.0001099,2]
[380032480,1755489046069,-1691.21177121,0.0001099,2]
[380032481,1755489046079,-1912.49181604,0.0001099,2]
[380032482,1755489046088,-2133.77186087,0.0001099,2]
[380032483,1755489046098,-2355.0519057,0.0001099,2]
[380032484,1755489046107,-2576.33195053,0.0001099,2]
[380032485,1755489046117,-1006.97904764,0.0001099,2]
[380032487,1755489046127,-1006.97904764,0.0001099,2]
[380032488,1755489046138,-16994.5482493,0.00010992,2]
[380032489,1755489046149,-1000.0,0.00010999,2]
[380032490,1755489046159,-1000.0,0.00010999,2]
[380032492,1755489046169,-194.58055401,0.00010999,3]
[380032493,1755489046178,-1000.0,0.00010999,2]
[380032494,1755489046190,-2000.0,0.00010999,2]
[380032495,1755489046200,-2000.0,0.00010999,2]
[380032496,1755489046210,-2000.0,0.00010999,2]
[380032497,1755489046219,-2000.0,0.00010999,2]
[380032499,1755489046231,-2000.0,0.00010999,2]
[380032500,1755489046241,-2000.0,0.00010999,2]
[380032501,1755489046251,-2000.0,0.00010999,2]
[380032502,1755489046261,-2000.0,0.00010999,2]
[380032503,1755489046270,-2000.0,0.00010999,2]
[380032504,1755489046280,-5374.59,0.00010999,2]
[380032505,1755489046289,-2000.0,0.00010999,2]
[380032506,1755489046299,-150.0,0.00010999,2]
[380032507,1755489046309,-150.0,0.00010999,2]
[380032508,1755489046318,-150.0,0.00010999,2]
[380032509,1755489046328,-150.0,0.00010999,2]
[380032510,1755489046338,-150.0,0.00010999,2]
[380032511,1755489046348,-150.0,0.00010999,2]
[380032512,1755489046358,-150.0,0.00010999,2]
[380032513,1755489046367,-16752.62,0.00011,2]
[380032514,1755489046377,-10910555.39224933,0.00011,2]
[380032515,1755489046387,-9263705.04026285,0.00011,2]
[380032516,1755489046429,-430.15491263,0.00011,2]
[380032517,1755489046441,-12172.84865452,0.00011,2]
[380032518,1755489046452,-2606.0954078,0.00011,2]
[380032519,1755489046464,-13131.85966381,0.00011,2]
[380032520,1755489046475,-328.1260503,0.00011,2]
[380032521,1755489046487,-2028.053151,0.00011,2]
[380032525,1755489049833,500.0,6.6e-07,120]
[380032526,1755489050642,-229.636468,8.178e-05,2]
[380032527,1755489050653,-485.49760386,0.000109,2]
[380032528,1755489050662,-500.0,0.00010973,2]
[380032529,1755489050672,-78962.75807158,0.00011,2]
[380032530,1755489050683,-183308.3930175,0.00011,2]
[380032531,1755489051094,-5964.9209487,0.00011,2]
[380032532,1755489051113,-911.41437485,0.00011,2]
[380032533,1755489052800,-0.01002141,0.00011,2]
[380032534,1755489052817,-315.8199468,0.00011,2]
[380032535,1755489052829,-1730.84596,0.00011,2]
[380032536,1755489052841,-516.0,0.00011,2]
[380032537,1755489052852,-8595.48765015,0.00011,2]
[380032538,1755489052864,-8947.21879473,0.00011,2]
[380032539,1755489052876,-8943.78386462,0.00011,2]
[380032540,1755489052890,-9077.54866152,0.00011,2]
[380032541,1755489052901,-8943.84023489,0.00011,2]
[380032542,1755489052914,-1153.1,0.00011,2]
[380032543,1755489052927,-86490.0,0.00011,2]
[380032544,1755489053094,-19100.43750404,0.00011,2]
[380032545,1755489053111,-25611.20000595,0.00011,2]
[380032546,1755489053124,-5893.39808926,0.00011,2]
[380032547,1755489053137,-6883.38337673,0.00011,2]
[380032548,1755489053151,-4128.63986883,0.00011,2]
[380032549,1755489053162,-4432.26839026,0.00011,2]
[380032550,1755489053174,-25779.98674012,0.00011,2]
[380032551,1755489053185,-83825.33277883,0.00011,2]
[380032552,1755489053198,-1363.68834929,0.00011,2]
[380032553,1755489053210,-9677.49190937,0.00011,2]
[380032554,1755489053221,-2450.08099561,0.00011,2]
[380032555,1755489053239,-31906.77109512,0.00011,2]
[380032556,1755489053254,-270.26868418,0.00011,2]
[380032557,1755489053266,-256.3231302,0.00011,2]
[380032558,1755489053326,-29401.90981153,0.00011,2]
[380032559,1755489053337,-861.1047145,0.00011,2]
[380032560,1755489053349,-470.20049994,0.00011,2]
[380032561,1755489053498,-9865.10141291,0.00011,2]
[380032562,1755489053557,-2309.98419839,0.00011,2]
[380032563,1755489055552,-4301.0,0.00011,2]
[380032564,1755489055563,-28325.060825,0.00011,2]
[380032565,1755489055574,-38416.80000067,0.00011,2]
[380032566,1755489055612,-537.21249999,0.00011,2]
[380032567,1755489055623,-3711.70245567,0.00011,2]
[380032568,1755489055719,-520981.81812796,0.00011,2]
[380032569,1755489055730,-645.645,0.00011,2]
[380032570,1755489055836,-238.79937449,9.691e-05,2]
[380032571,1755489055846,-21316.77816563,0.00011,2]
[380032572,1755489055857,-23092.0,0.00011,2]
[380032573,1755489055907,-594.67599386,0.00011,2]
[380032574,1755489058348,500.0,6.6e-07,120]
[380032575,1755489065707,-180.70200898,9.59e-05,2]
[380032576,1755489065756,-238.29799102,9.59e-05,2]
[380032577,1755489065782,-8750.9732,9.591e-05,2]
[380032578,1755489066133,500.0,6.6e-07,120]
[380032579,1755489068046,300.0,6.714e-05,2]
[380032580,1755489068733,150.0,9.559e-05,2]
[380032581,1755489073306,500.0,6.6e-07,120]
[380032582,1755489079322,500.0,6.6e-07,120]
[380032583,1755489086136,250.0,6.13e-05,2]
[380032584,1755489086690,500.0,6.6e-07,120]
[380032585,1755489088960,-180.30222094,6.13e-05,2]
[380032586,1755489091623,-310.26344299,6.13e-05,2]
[380032587,1755489093131,-202.02133607,6.13e-05,2]
[380032588,1755489093156,-108.4830468,6.714e-05,2]
[380032589,1755489095221,500.0,6.6e-07,120]
[380032590,1755489095687,-262.48051246,6.714e-05,2]
[380032591,1755489098791,-129.03644074,6.714e-05,2]
[380032592,1755489098817,-225.74456605,6.714e-05,2]
[380032593,1755489101811,-274.25543395,6.714e-05,2]
[380032594,1755489101836,-118.93455411,6.714e-05,2]
[380032595,1755489104120,-381.06544589,6.714e-05,2]
[380032596,1755489104143,-7.73045318,6.714e-05,2]
[380032597,1755489106693,-243.08452339,6.714e-05,2]
[380032598,1755489108688,-249.18502343,6.714e-05,2]
[380032599,1755489108746,-167.28302389,6.714e-05,2]
[380032600,1755489109274,500.0,6.6e-07,120]
[380032601,1755489110368,-233.59434675,6.714e-05,2]
[380032602,1755489112398,-99.12262936,6.714e-05,2]
[380032603,1755489112423,-263.37828519,6.714e-05,2]
[380032604,1755489115810,500.0,6.6e-07,120]
[380032605,1755489116835,-236.62171481,6.714e-05,2]
[380032606,1755489116856,-51.81903904,6.714e-05,2]
[380032607,1755489121710,-154.56046656,6.714e-05,2]
[380032608,1755489121901,500.0,6.6e-07,120]
[380032609,1755489122892,-293.6204944,6.714e-05,2]
[380032610,1755489124629,-156.0,6.714e-05,2]
[380032611,1755489124654,-59.68844194,6.714e-05,2]
[380032612,1755489129879,500.0,6.6e-07,120]
[380032613,1755489130854,-104.70392909,6.714e-05,2]
[380032614,1755489138490,-200.0,6.714e-05,2]
[380032615,1755489144294,-14.39237103,6.714e-05,2]
[380032616,1755489144316,-121.21525794,6.714e-05,2]
[380032617,1755489146489,500.0,6.6e-07,120]
[380032618,1755489154527,500.0,6.6e-07,120]
[380032620,1755489163297,500.0,6.6e-07,120]
[380032623,1755489172199,500.0,6.6e-07,120]
[380032624,1755489178600,500.0,6.6e-07,120]
[380032625,1755489186209,500.0,6.6e-07,120]
[380032626,1755489194602,500.0,6.6e-07,120]
[380032627,1755489202074,500.0,6.6e-07,120]
[380032628,1755489208838,500.0,6.6e-07,120]
[380032629,1755489216729,500.0,6.6e-07,120]
[380032630,1755489223872,466.0,6.6e-07,120]
[380032631,1755489229706,600.0,0.00024,120]
[380032632,1755489258259,-153.59930999,6.713e-05,2]
[380032645,1755489274639,-146.40069001,6.713e-05,2]
[380032646,1755489274667,-54.54329646,6.713e-05,2]
[380032647,1755489275202,-95.45670354,6.713e-05,2]
[380032648,1755489276064,-165.5554247,7.384e-05,2]
[380032649,1755489280782,-254.4445753,7.384e-05,2]
[380032650,1755489280803,-35.32708848,7.384e-05,2]
[380032651,1755489283380,-195.21137337,7.384e-05,2]
[380032652,1755489284132,-24.46153815,7.384e-05,2]
[380032653,1755489284533,-211.28373796,7.387e-05,2]
[380032654,1755489284740,1000.0,6.6e-07,120]
[380032655,1755489288822,-392.76962307,7.383e-05,2]
[380032656,1755489290482,-107.23037693,7.383e-05,2]
[380032657,1755489290533,-21.80861122,7.383e-05,2]
[380032658,1755489290593,-265.53837491,7.383e-05,2]
[380032659,1755489291977,1000.0,6.6e-07,120]
[380032660,1755489292221,-212.65301387,7.383e-05,2]
[380032661,1755489292246,-37.34698613,7.383e-05,2]
[380032662,1755489295904,-250.55859538,7.383e-05,2]
[380032663,1755489297748,-212.09441849,7.383e-05,2]
[380032664,1755489297983,-136.63681711,7.383e-05,2]
[380032665,1755489299476,1000.0,6.6e-07,120]
[380032666,1755489300087,-178.32608903,7.383e-05,2]
[380032667,1755489303222,-174.74147564,7.382e-05,2]
[380032669,1755489305288,-450.63419628,7.382e-05,2]
[380032671,1755489306822,-150.0,7.382e-05,2]
[380032672,1755489307033,1000.0,6.6e-07,120]
[380032674,1755489308346,-209.78637255,7.382e-05,2]
[380032675,1755489311897,-158.09415592,7.382e-05,2]
[380032676,1755489318060,1000.0,6.6e-07,120]
[380032677,1755489326428,1000.0,6.6e-07,120]
[380032678,1755489327819,-56.74379961,7.382e-05,2]
[380032679,1755489327847,-300.0,7.382e-05,2]
[380032680,1755489327874,-185.03709386,7.383e-05,2]
[380032681,1755489327902,-416.43821306,7.383e-05,2]
[380032682,1755489328530,-83.56178694,7.383e-05,2]